[Event "Late-Titled-Tuesday-Blitz-May-14-2024"]
[Site "Chess.com"]
[Date "2024.05.14"]
[Round "2"]
[White "ReadySkate"]
[Black "laskakid"]
[Result "1-0"]
[WhiteElo "2739"]
[BlackElo "2395"]
[TimeControl "180+1"]
[EndTime "14:17:38 PDT"]
[Termination "ReadySkate won on time"]

1. d4 {[%clk 0:03:00.9]} 1... f5 {[%clk 0:02:59.5]} 2. Nc3 {[%clk 0:03:00.6]}
2... Nf6 {[%clk 0:02:59.4]} 3. Bg5 {[%clk 0:03:01]} 3... d5 {[%clk 0:02:59.5]}
4. f3 {[%clk 0:03:00.2]} 4... e6 {[%clk 0:02:56.3]} 5. e4 {[%clk 0:03:00.1]}
5... Be7 {[%clk 0:02:52.2]} 6. e5 {[%clk 0:02:58.3]} 6... Nfd7 {[%clk
0:02:50.3]} 7. Bxe7 {[%clk 0:02:58.7]} 7... Qxe7 {[%clk 0:02:50.5]} 8. f4 {[%clk
0:02:59.4]} 8... b6 {[%clk 0:02:45.5]} 9. Nf3 {[%clk 0:02:58.9]} 9... Ba6 {[%clk
0:02:40.6]} 10. Bxa6 {[%clk 0:02:54]} 10... Nxa6 {[%clk 0:02:40.8]} 11. Qe2
{[%clk 0:02:54.6]} 11... Nab8 {[%clk 0:02:38.3]} 12. O-O {[%clk 0:02:53]} 12...
O-O {[%clk 0:02:30.8]} 13. Nd1 {[%clk 0:02:51.6]} 13... c5 {[%clk 0:02:25.6]}
14. c4 {[%clk 0:02:51.4]} 14... dxc4 {[%clk 0:02:14.7]} 15. Qxc4 {[%clk
0:02:47.7]} 15... Nc6 {[%clk 0:02:03.8]} 16. d5 {[%clk 0:02:46.2]} 16... Na5
{[%clk 0:02:03.4]} 17. Qd3 {[%clk 0:02:46.2]} 17... c4 {[%clk 0:01:56.3]} 18.
Qd4 {[%clk 0:02:45.4]} 18... Nc5 {[%clk 0:01:51.3]} 19. d6 {[%clk 0:02:43.4]}
19... Qd7 {[%clk 0:01:51.3]} 20. Ne3 {[%clk 0:02:43.5]} 20... Nd3 {[%clk
0:01:40]} 21. Nxc4 {[%clk 0:02:38.6]} 21... Nxc4 {[%clk 0:01:39.5]} 22. Qxc4
{[%clk 0:02:38.5]} 22... Nxb2 {[%clk 0:01:38.1]} 23. Qb3 {[%clk 0:02:36.9]}
23... Na4 {[%clk 0:01:37.4]} 24. Nd4 {[%clk 0:02:34]} 24... Nc5 {[%clk
0:01:37.5]} 25. Qc4 {[%clk 0:02:33.1]} 25... Rac8 {[%clk 0:01:33.4]} 26. Rac1
{[%clk 0:02:31.5]} 26... g6 {[%clk 0:01:17.5]} 27. a3 {[%clk 0:02:31.3]} 27...
Kf7 {[%clk 0:01:12.3]} 28. Qa2 {[%clk 0:02:22]} 28... Qa4 {[%clk 0:00:53]} 29.
Rc4 {[%clk 0:02:21.7]} 29... Qd7 {[%clk 0:00:47.3]} 30. g4 {[%clk 0:02:19.4]}
30... Ne4 {[%clk 0:00:39.7]} 31. gxf5 {[%clk 0:02:15.2]} 31... gxf5 {[%clk
0:00:36.9]} 32. Rfc1 {[%clk 0:01:57.5]} 32... Rg8+ {[%clk 0:00:31.9]} 33. Kf1
{[%clk 0:01:56]} 33... Rxc4 {[%clk 0:00:17.1]} 34. Rxc4 {[%clk 0:01:56.9]} 34...
Rc8 {[%clk 0:00:13.5]} 35. Kg2 {[%clk 0:01:31.2]} 35... Rxc4 {[%clk 0:00:09.9]}
36. Qxc4 {[%clk 0:01:32]} 36... Kg8 {[%clk 0:00:08.5]} 37. Qc7 {[%clk
0:01:26.3]} 37... Nc5 {[%clk 0:00:04.9]} 38. Qxd7 {[%clk 0:01:23.3]} 38... Nxd7
{[%clk 0:00:04.9]} 39. Nxe6 {[%clk 0:01:23.9]} 39... Kf7 {[%clk 0:00:04.7]} 40.
Nd4 {[%clk 0:01:24.4]} 40... Ke8 {[%clk 0:00:03.8]} 41. Nxf5 {[%clk 0:01:23.9]}
41... Nc5 {[%clk 0:00:03.4]} 42. Nd4 {[%clk 0:01:23.6]} 42... Kd7 {[%clk
0:00:03.7]} 43. Kf3 {[%clk 0:01:23.5]} 43... Nd3 {[%clk 0:00:03.8]} 44. Ke4
{[%clk 0:01:23.3]} 44... Nb2 {[%clk 0:00:03.8]} 45. Kd5 {[%clk 0:01:23.3]} 45...
Nd3 {[%clk 0:00:03.8]} 46. e6+ {[%clk 0:01:23.7]} 46... Ke8 {[%clk 0:00:03.4]}
47. f5 {[%clk 0:01:21.8]} 47... Nf4+ {[%clk 0:00:02]} 48. Kc6 {[%clk 0:01:22.2]}
1-0

[Event "Late-Titled-Tuesday-Blitz-May-14-2024"]
[Site "Chess.com"]
[Date "2024.05.14"]
[Round "2"]
[White "NovakCabarkapa"]
[Black "Kozok"]
[Result "1-0"]
[WhiteElo "2750"]
[BlackElo "2412"]
[TimeControl "180+1"]
[EndTime "14:17:40 PDT"]
[Termination "NovakCabarkapa won by checkmate"]

1. d4 {[%clk 0:03:00.9]} 1... Nf6 {[%clk 0:02:57.7]} 2. Nc3 {[%clk 0:03:00.8]}
2... d5 {[%clk 0:02:51.6]} 3. Bf4 {[%clk 0:03:00.6]} 3... e6 {[%clk 0:02:48.5]}
4. e3 {[%clk 0:03:00.3]} 4... c5 {[%clk 0:02:47.6]} 5. Nb5 {[%clk 0:02:57.5]}
5... Na6 {[%clk 0:02:47.7]} 6. c3 {[%clk 0:02:57.6]} 6... Be7 {[%clk 0:02:43.7]}
7. a4 {[%clk 0:02:56.9]} 7... O-O {[%clk 0:02:43.5]} 8. Bd3 {[%clk 0:02:57.6]}
8... Bd7 {[%clk 0:02:39.1]} 9. Nf3 {[%clk 0:02:57.6]} 9... Qb6 {[%clk
0:02:37.8]} 10. Ne5 {[%clk 0:02:57]} 10... Be8 {[%clk 0:02:31.8]} 11. g4 {[%clk
0:02:55.5]} 11... c4 {[%clk 0:02:27.6]} 12. Bc2 {[%clk 0:02:55.5]} 12... Bxb5
{[%clk 0:02:21.3]} 13. axb5 {[%clk 0:02:56.4]} 13... Qxb5 {[%clk 0:02:21.8]} 14.
Qb1 {[%clk 0:02:50.3]} 14... Rad8 {[%clk 0:01:59.2]} 15. f3 {[%clk 0:02:49.4]}
15... g6 {[%clk 0:01:58.4]} 16. h4 {[%clk 0:02:49.2]} 16... Qb6 {[%clk
0:01:48.1]} 17. h5 {[%clk 0:02:46]} 17... gxh5 {[%clk 0:01:04.6]} 18. g5 {[%clk
0:02:42.2]} 18... Nd7 {[%clk 0:01:02.3]} 19. Rxh5 {[%clk 0:02:22.4]} 19... f5
{[%clk 0:00:38.5]} 20. gxf6 {[%clk 0:02:17.1]} 20... Nxf6 {[%clk 0:00:36.4]} 21.
Bxh7+ {[%clk 0:02:16.6]} 21... Kg7 {[%clk 0:00:26.3]} 22. Qg6+ {[%clk
0:02:12.1]} 22... Kh8 {[%clk 0:00:25.6]} 23. Bh6 {[%clk 0:01:46.1]} 23... Nxh5
{[%clk 0:00:18]} 24. Bg8 {[%clk 0:01:33]} 24... Bh4+ {[%clk 0:00:02.1]} 25. Kd1
{[%clk 0:01:24.4]} 25... Qc7 {[%clk 0:00:03]} 26. Bf7 {[%clk 0:00:49.6]} 26...
Rxf7 {[%clk 0:00:03.1]} 27. Nxf7+ {[%clk 0:00:46.7]} 27... Qxf7 {[%clk
0:00:03.5]} 28. Qxf7 {[%clk 0:00:47.1]} 28... Rg8 {[%clk 0:00:02.1]} 29. Qxh5
{[%clk 0:00:45.3]} 29... Rg1+ {[%clk 0:00:02.2]} 30. Ke2 {[%clk 0:00:44.3]}
30... Rxa1 {[%clk 0:00:03.1]} 31. Qg6 {[%clk 0:00:40.3]} 31... Bf6 {[%clk
0:00:02.3]} 32. Qxf6+ {[%clk 0:00:38.2]} 32... Kh7 {[%clk 0:00:03.2]} 33. Qg7#
{[%clk 0:00:38.2]} 1-0

[Event "Late-Titled-Tuesday-Blitz-May-14-2024"]
[Site "Chess.com"]
[Date "2024.05.14"]
[Round "2"]
[White "XeresLt"]
[Black "CixPer1968"]
[Result "1-0"]
[WhiteElo "2477"]
[BlackElo "2192"]
[TimeControl "180+1"]
[EndTime "14:17:42 PDT"]
[Termination "XeresLt won on time"]

1. e4 {[%clk 0:03:00.9]} 1... c5 {[%clk 0:02:57.8]} 2. Nf3 {[%clk 0:03:01.1]}
2... d6 {[%clk 0:02:54.9]} 3. d4 {[%clk 0:03:01.2]} 3... cxd4 {[%clk 0:02:55.2]}
4. Nxd4 {[%clk 0:03:02.1]} 4... Nf6 {[%clk 0:02:54.6]} 5. Nc3 {[%clk 0:03:02.4]}
5... g6 {[%clk 0:02:54.4]} 6. Be3 {[%clk 0:02:59.9]} 6... Bg7 {[%clk 0:02:54.1]}
7. Bc4 {[%clk 0:03:00.1]} 7... O-O {[%clk 0:02:53.5]} 8. f3 {[%clk 0:03:00.5]}
8... Nc6 {[%clk 0:02:52.5]} 9. Qd2 {[%clk 0:02:59.8]} 9... Bd7 {[%clk
0:02:45.6]} 10. h4 {[%clk 0:02:58.1]} 10... Rb8 {[%clk 0:02:42.2]} 11. h5 {[%clk
0:02:54.4]} 11... Ne5 {[%clk 0:02:40.9]} 12. Bb3 {[%clk 0:02:53.9]} 12... b5
{[%clk 0:02:40.6]} 13. hxg6 {[%clk 0:02:53]} 13... hxg6 {[%clk 0:02:40.4]} 14.
Bh6 {[%clk 0:02:49.3]} 14... Bh8 {[%clk 0:01:46]} 15. Bxf8 {[%clk 0:02:34.9]}
15... Qxf8 {[%clk 0:01:44.8]} 16. O-O-O {[%clk 0:02:31.3]} 16... Nc4 {[%clk
0:01:43.7]} 17. Qg5 {[%clk 0:02:29.5]} 17... Bg7 {[%clk 0:01:28.3]} 18. Nd5
{[%clk 0:02:20.6]} 18... Nxd5 {[%clk 0:01:20.7]} 19. exd5 {[%clk 0:02:20.7]}
19... a5 {[%clk 0:01:17.2]} 20. Qh4 {[%clk 0:02:19.7]} 20... f5 {[%clk
0:01:07.1]} 21. c3 {[%clk 0:01:54.8]} 21... a4 {[%clk 0:01:02.5]} 22. Bxc4
{[%clk 0:01:50.6]} 22... bxc4 {[%clk 0:01:01.4]} 23. a3 {[%clk 0:01:50.9]} 23...
Qf6 {[%clk 0:00:19.9]} 24. Ne6 {[%clk 0:01:00.1]} 24... Bxe6 {[%clk 0:00:17]}
25. Qxf6 {[%clk 0:00:59.9]} 25... Bxf6 {[%clk 0:00:14.5]} 26. dxe6 {[%clk
0:01:00.3]} 26... Bg5+ {[%clk 0:00:14.7]} 27. Kc2 {[%clk 0:00:59.9]} 27... Rb3
{[%clk 0:00:12.2]} 28. Rd5 {[%clk 0:00:59.4]} 28... Kg7 {[%clk 0:00:08.8]} 29.
g4 {[%clk 0:00:55.9]} 29... fxg4 {[%clk 0:00:07.7]} 30. Rxg5 {[%clk 0:00:55.4]}
30... gxf3 {[%clk 0:00:07.9]} 31. Rg3 {[%clk 0:00:46.4]} 31... d5 {[%clk
0:00:05.6]} 32. Rxf3 {[%clk 0:00:45]} 32... d4 {[%clk 0:00:06]} 33. Rf7+ {[%clk
0:00:45.1]} 33... Kg8 {[%clk 0:00:05.5]} 34. cxd4 {[%clk 0:00:45.6]} 34... Re3
{[%clk 0:00:03]} 35. Rxe7 {[%clk 0:00:45.4]} 1-0

[Event "Late-Titled-Tuesday-Blitz-May-14-2024"]
[Site "Chess.com"]
[Date "2024.05.14"]
[Round "2"]
[White "familijatop71"]
[Black "doublesik"]
[Result "0-1"]
[WhiteElo "2314"]
[BlackElo "2529"]
[TimeControl "180+1"]
[EndTime "14:17:46 PDT"]
[Termination "doublesik won by checkmate"]

1. e4 {[%clk 0:03:00.9]} 1... c5 {[%clk 0:02:59.3]} 2. c3 {[%clk 0:02:59.8]}
2... d5 {[%clk 0:02:55.1]} 3. exd5 {[%clk 0:02:59.2]} 3... Qxd5 {[%clk 0:02:56]}
4. Nf3 {[%clk 0:02:59]} 4... Nf6 {[%clk 0:02:55.1]} 5. Na3 {[%clk 0:02:59.2]}
5... Nc6 {[%clk 0:02:52.1]} 6. Be2 {[%clk 0:02:58.3]} 6... Bg4 {[%clk
0:02:49.9]} 7. Qa4 {[%clk 0:02:52.5]} 7... e6 {[%clk 0:02:39.3]} 8. Nc4 {[%clk
0:02:49.9]} 8... Rc8 {[%clk 0:02:17.9]} 9. Ne3 {[%clk 0:02:40.8]} 9... Qh5
{[%clk 0:02:09]} 10. h3 {[%clk 0:02:40.2]} 10... Bxf3 {[%clk 0:01:51.2]} 11.
Bxf3 {[%clk 0:02:41.1]} 11... Qg6 {[%clk 0:01:50]} 12. Bxc6+ {[%clk 0:02:38.9]}
12... bxc6 {[%clk 0:01:35.2]} 13. O-O {[%clk 0:02:27.5]} 13... Bd6 {[%clk
0:01:19.7]} 14. Qxa7 {[%clk 0:02:16.7]} 14... O-O {[%clk 0:01:16.6]} 15. Nc4
{[%clk 0:02:10.7]} 15... Ra8 {[%clk 0:00:52.7]} 16. Qb7 {[%clk 0:02:03]} 16...
Qd3 {[%clk 0:00:45.4]} 17. Nxd6 {[%clk 0:01:43]} 17... Qxd6 {[%clk 0:00:46.3]}
18. Qb3 {[%clk 0:01:43.1]} 18... Qd3 {[%clk 0:00:36.1]} 19. Re1 {[%clk
0:01:35.2]} 19... c4 {[%clk 0:00:35.9]} 20. Qb7 {[%clk 0:01:28.5]} 20... Rfc8
{[%clk 0:00:24.4]} 21. a4 {[%clk 0:01:17.7]} 21... Nd5 {[%clk 0:00:23.6]} 22. a5
{[%clk 0:01:04.5]} 22... Nf4 {[%clk 0:00:20.6]} 23. a6 {[%clk 0:00:45.7]} 23...
Qd5 {[%clk 0:00:18.2]} 24. f3 {[%clk 0:00:30.3]} 24... Qg5 {[%clk 0:00:17.7]}
25. g4 {[%clk 0:00:22.1]} 25... Qh4 {[%clk 0:00:17.2]} 26. d4 {[%clk 0:00:06.1]}
26... Qg3+ {[%clk 0:00:15.6]} 27. Kf1 {[%clk 0:00:06.4]} 27... Qg2# {[%clk
0:00:15.7]} 0-1

[Event "Late-Titled-Tuesday-Blitz-May-14-2024"]
[Site "Chess.com"]
[Date "2024.05.14"]
[Round "2"]
[White "Caracal3000"]
[Black "ameetghasi100"]
[Result "0-1"]
[WhiteElo "2539"]
[BlackElo "2769"]
[TimeControl "180+1"]
[EndTime "14:17:47 PDT"]
[Termination "ameetghasi100 won by checkmate"]

1. e4 {[%clk 0:03:00.9]} 1... g6 {[%clk 0:02:59.6]} 2. d4 {[%clk 0:03:00.8]}
2... d6 {[%clk 0:03:00.5]} 3. Nc3 {[%clk 0:03:00.4]} 3... c6 {[%clk 0:03:01.4]}
4. Nf3 {[%clk 0:02:58]} 4... Bg7 {[%clk 0:02:59.3]} 5. Bc4 {[%clk 0:02:55.5]}
5... Nf6 {[%clk 0:02:54.9]} 6. a4 {[%clk 0:02:52.8]} 6... O-O {[%clk 0:02:54.1]}
7. O-O {[%clk 0:02:52.7]} 7... Bg4 {[%clk 0:02:49.8]} 8. h3 {[%clk 0:02:52.5]}
8... Bxf3 {[%clk 0:02:46.8]} 9. Qxf3 {[%clk 0:02:53.4]} 9... Nbd7 {[%clk
0:02:45.2]} 10. Bb3 {[%clk 0:02:46.1]} 10... e5 {[%clk 0:02:40.1]} 11. dxe5
{[%clk 0:02:38]} 11... dxe5 {[%clk 0:02:38.9]} 12. Be3 {[%clk 0:02:37.2]} 12...
Qe7 {[%clk 0:02:37.8]} 13. Rfd1 {[%clk 0:02:28.6]} 13... Nc5 {[%clk 0:02:28.9]}
14. Bc4 {[%clk 0:02:22.4]} 14... Rfd8 {[%clk 0:02:26.7]} 15. b3 {[%clk
0:02:15.6]} 15... a5 {[%clk 0:02:20.1]} 16. Rxd8+ {[%clk 0:01:41.4]} 16... Rxd8
{[%clk 0:02:17.5]} 17. Bxc5 {[%clk 0:01:42.3]} 17... Qxc5 {[%clk 0:02:16.7]} 18.
Rd1 {[%clk 0:01:43.2]} 18... Rd4 {[%clk 0:02:06.5]} 19. Rxd4 {[%clk 0:01:31.2]}
19... exd4 {[%clk 0:02:03.7]} 20. Ne2 {[%clk 0:01:24.7]} 20... b5 {[%clk
0:02:02.3]} 21. axb5 {[%clk 0:01:19.3]} 21... cxb5 {[%clk 0:02:03.2]} 22. Bd3
{[%clk 0:01:19.1]} 22... Nd7 {[%clk 0:02:03]} 23. e5 {[%clk 0:01:10.8]} 23...
Nxe5 {[%clk 0:01:46.2]} 24. Qa8+ {[%clk 0:01:10.2]} 24... Bf8 {[%clk 0:01:45.7]}
25. Qxa5 {[%clk 0:01:10.3]} 25... Nxd3 {[%clk 0:01:27.8]} 26. cxd3 {[%clk
0:01:11.2]} 26... Qc2 {[%clk 0:01:15.4]} 27. Nxd4 {[%clk 0:01:11]} 27... Qc1+
{[%clk 0:01:09.3]} 28. Kh2 {[%clk 0:01:07.5]} 28... Qf4+ {[%clk 0:01:01.1]} 29.
Kg1 {[%clk 0:01:07.8]} 29... Qxd4 {[%clk 0:01:01.7]} 30. Qxb5 {[%clk 0:01:07.4]}
30... Bc5 {[%clk 0:01:01.7]} 31. Qe8+ {[%clk 0:00:59.4]} 31... Kg7 {[%clk
0:01:00.9]} 32. Qe2 {[%clk 0:00:59.9]} 32... Qc3 {[%clk 0:00:55.6]} 33. g3
{[%clk 0:00:55.6]} 33... Bd4 {[%clk 0:00:55.1]} 34. Qd1 {[%clk 0:00:48.6]} 34...
Qb2 {[%clk 0:00:53]} 35. Qf3 {[%clk 0:00:45.4]} 35... Qxb3 {[%clk 0:00:50]} 36.
Kg2 {[%clk 0:00:45.9]} 36... Qb2 {[%clk 0:00:49.9]} 37. h4 {[%clk 0:00:44.9]}
37... h6 {[%clk 0:00:50.8]} 38. h5 {[%clk 0:00:45.1]} 38... g5 {[%clk
0:00:50.6]} 39. Qf5 {[%clk 0:00:34.9]} 39... Qe2 {[%clk 0:00:49.8]} 40. Qe4
{[%clk 0:00:30.4]} 40... Qxf2+ {[%clk 0:00:48.8]} 41. Kh3 {[%clk 0:00:31]} 41...
Qf6 {[%clk 0:00:49.6]} 42. g4 {[%clk 0:00:27.6]} 42... Bb6 {[%clk 0:00:45.7]}
43. Qd5 {[%clk 0:00:21.1]} 43... Qf1+ {[%clk 0:00:42.2]} 44. Kh2 {[%clk
0:00:21]} 44... Bc7+ {[%clk 0:00:41.6]} 45. Qe5+ {[%clk 0:00:19.8]} 45... Bxe5#
{[%clk 0:00:40.6]} 0-1

[Event "Late-Titled-Tuesday-Blitz-May-14-2024"]
[Site "Chess.com"]
[Date "2024.05.14"]
[Round "2"]
[White "AsaHoffmann"]
[Black "merinasian"]
[Result "1/2-1/2"]
[WhiteElo "2319"]
[BlackElo "2520"]
[TimeControl "180+1"]
[EndTime "14:17:47 PDT"]
[Termination "Game drawn - insufficient material"]

1. d4 {[%clk 0:02:58.4]} 1... d6 {[%clk 0:03:00.1]} 2. e4 {[%clk 0:02:54.1]}
2... Nd7 {[%clk 0:03:00.6]} 3. f4 {[%clk 0:02:53.4]} 3... g6 {[%clk 0:03:00.1]}
4. Nf3 {[%clk 0:02:53.2]} 4... Bg7 {[%clk 0:03:00.6]} 5. Nc3 {[%clk 0:02:52.9]}
5... c5 {[%clk 0:03:00.7]} 6. Be3 {[%clk 0:02:51.6]} 6... Ngf6 {[%clk
0:02:56.7]} 7. e5 {[%clk 0:02:50.9]} 7... Ng4 {[%clk 0:02:54.7]} 8. Bg1 {[%clk
0:02:49.7]} 8... cxd4 {[%clk 0:02:53.2]} 9. Bxd4 {[%clk 0:02:36.6]} 9... dxe5
{[%clk 0:02:52.5]} 10. fxe5 {[%clk 0:02:33.6]} 10... Ndxe5 {[%clk 0:02:31.6]}
11. Bb5+ {[%clk 0:02:18.4]} 11... Bd7 {[%clk 0:02:31.6]} 12. Nxe5 {[%clk
0:02:10.7]} 12... Nxe5 {[%clk 0:02:29]} 13. Qe2 {[%clk 0:02:08.9]} 13... Nf3+
{[%clk 0:01:28.9]} 14. Qxf3 {[%clk 0:01:58]} 14... Bxd4 {[%clk 0:01:29.2]} 15.
Qxb7 {[%clk 0:01:49]} 15... Bxc3+ {[%clk 0:01:20.9]} 16. bxc3 {[%clk 0:01:48]}
16... Bxb5 {[%clk 0:01:20.7]} 17. Qxb5+ {[%clk 0:01:42.9]} 17... Kf8 {[%clk
0:01:20.9]} 18. O-O {[%clk 0:01:29.9]} 18... Qb6+ {[%clk 0:01:17.7]} 19. Qxb6
{[%clk 0:01:29.2]} 19... axb6 {[%clk 0:01:18.6]} 20. Rab1 {[%clk 0:01:29]} 20...
Rxa2 {[%clk 0:01:17.6]} 21. Rxb6 {[%clk 0:01:28]} 21... Kg7 {[%clk 0:01:15.4]}
22. Rb7 {[%clk 0:01:25.7]} 22... Re8 {[%clk 0:01:15.2]} 23. Rf2 {[%clk
0:01:23.3]} 23... f5 {[%clk 0:01:12.3]} 24. h4 {[%clk 0:01:23.1]} 24... Kf6
{[%clk 0:01:12]} 25. c4 {[%clk 0:01:21.7]} 25... Rea8 {[%clk 0:01:07.7]} 26. Re2
{[%clk 0:01:18.3]} 26... e6 {[%clk 0:01:03.7]} 27. Rb6 {[%clk 0:01:16.6]} 27...
Re8 {[%clk 0:00:58.9]} 28. c5 {[%clk 0:01:16.4]} 28... Ra5 {[%clk 0:00:58.4]}
29. c6 {[%clk 0:01:13.4]} 29... Rc5 {[%clk 0:00:58.5]} 30. Kf2 {[%clk 0:01:08]}
30... Rc8 {[%clk 0:00:58.6]} 31. c7 {[%clk 0:01:06.2]} 31... R8xc7 {[%clk
0:00:58.8]} 32. Rbxe6+ {[%clk 0:01:02.3]} 32... Kf7 {[%clk 0:00:59.1]} 33. h5
{[%clk 0:00:58.7]} 33... Rxc2 {[%clk 0:00:58.5]} 34. hxg6+ {[%clk 0:00:58.5]}
34... hxg6 {[%clk 0:00:59.4]} 35. Ra6 {[%clk 0:00:57.5]} 35... Rxe2+ {[%clk
0:00:56]} 36. Kxe2 {[%clk 0:00:57.4]} 36... Re7+ {[%clk 0:00:56.7]} 37. Kf3
{[%clk 0:00:57.3]} 37... Re6 {[%clk 0:00:57.3]} 38. Ra7+ {[%clk 0:00:56.2]}
38... Kf6 {[%clk 0:00:57.6]} 39. g4 {[%clk 0:00:56.3]} 39... Rb6 {[%clk
0:00:51.9]} 40. Ra3 {[%clk 0:00:53.6]} 40... Kg5 {[%clk 0:00:50.9]} 41. gxf5
{[%clk 0:00:52]} 41... gxf5 {[%clk 0:00:51.2]} 42. Rc3 {[%clk 0:00:51.4]} 42...
Rh6 {[%clk 0:00:49]} 43. Kg3 {[%clk 0:00:51]} 43... f4+ {[%clk 0:00:48.1]} 44.
Kg2 {[%clk 0:00:51]} 44... Kg4 {[%clk 0:00:47.4]} 45. Ra3 {[%clk 0:00:45.6]}
45... Rb6 {[%clk 0:00:46.3]} 46. Ra2 {[%clk 0:00:43.4]} 46... f3+ {[%clk
0:00:45.9]} 47. Kf2 {[%clk 0:00:42.2]} 47... Rb4 {[%clk 0:00:46.1]} 48. Rc2
{[%clk 0:00:41.6]} 48... Kf4 {[%clk 0:00:46.3]} 49. Ra2 {[%clk 0:00:41]} 49...
Re4 {[%clk 0:00:44.5]} 50. Rb2 {[%clk 0:00:40.7]} 50... Ra4 {[%clk 0:00:40.3]}
51. Rc2 {[%clk 0:00:40.5]} 51... Re4 {[%clk 0:00:38.9]} 52. Rb2 {[%clk
0:00:40.4]} 52... Re2+ {[%clk 0:00:37]} 53. Rxe2 {[%clk 0:00:39.8]} 53... fxe2
{[%clk 0:00:37.9]} 54. Kxe2 {[%clk 0:00:39.9]} 1/2-1/2

[Event "Late-Titled-Tuesday-Blitz-May-14-2024"]
[Site "Chess.com"]
[Date "2024.05.14"]
[Round "2"]
[White "Mischuk_D"]
[Black "CheckBits"]
[Result "1-0"]
[WhiteElo "2693"]
[BlackElo "2393"]
[TimeControl "180+1"]
[EndTime "14:17:50 PDT"]
[Termination "Mischuk_D won on time"]

1. d4 {[%clk 0:03:00.9]} 1... d5 {[%clk 0:02:57.9]} 2. c4 {[%clk 0:02:59.6]}
2... dxc4 {[%clk 0:02:57.5]} 3. Nf3 {[%clk 0:02:58.1]} 3... Nf6 {[%clk
0:02:56.7]} 4. e3 {[%clk 0:02:58.4]} 4... e6 {[%clk 0:02:56.2]} 5. Bxc4 {[%clk
0:02:58]} 5... a6 {[%clk 0:02:56]} 6. a4 {[%clk 0:02:55.2]} 6... Be7 {[%clk
0:02:52.7]} 7. O-O {[%clk 0:02:46.3]} 7... O-O {[%clk 0:02:49.7]} 8. Nc3 {[%clk
0:02:45.3]} 8... c5 {[%clk 0:02:46.7]} 9. Qe2 {[%clk 0:02:45.8]} 9... Nc6 {[%clk
0:02:37]} 10. Rd1 {[%clk 0:02:45.4]} 10... Qc7 {[%clk 0:02:36.4]} 11. d5 {[%clk
0:02:29.2]} 11... exd5 {[%clk 0:02:34.5]} 12. Nxd5 {[%clk 0:02:29.5]} 12... Nxd5
{[%clk 0:02:33.8]} 13. Bxd5 {[%clk 0:02:30.4]} 13... Bg4 {[%clk 0:02:30.6]} 14.
h3 {[%clk 0:02:28.2]} 14... Bh5 {[%clk 0:02:29.9]} 15. Bd2 {[%clk 0:02:26.9]}
15... Nb4 {[%clk 0:02:11.7]} 16. Bxb4 {[%clk 0:02:26.3]} 16... cxb4 {[%clk
0:02:11.3]} 17. Rac1 {[%clk 0:02:25.5]} 17... Qb6 {[%clk 0:02:01.2]} 18. Qc4
{[%clk 0:02:18.5]} 18... Bf6 {[%clk 0:01:52.4]} 19. Qb3 {[%clk 0:02:01.5]} 19...
Rac8 {[%clk 0:01:40.4]} 20. Rxc8 {[%clk 0:01:56.9]} 20... Rxc8 {[%clk
0:01:39.4]} 21. e4 {[%clk 0:01:51.6]} 21... Re8 {[%clk 0:01:08.6]} 22. Rc1
{[%clk 0:01:35.7]} 22... h6 {[%clk 0:01:03.3]} 23. Rc2 {[%clk 0:01:29.6]} 23...
a5 {[%clk 0:00:58.4]} 24. Qd3 {[%clk 0:00:52.5]} 24... Bg6 {[%clk 0:00:43.7]}
25. Qc4 {[%clk 0:00:48.9]} 25... Re7 {[%clk 0:00:21.7]} 26. Qc8+ {[%clk
0:00:44.6]} 26... Kh7 {[%clk 0:00:20.6]} 27. b3 {[%clk 0:00:43.8]} 27... Qd6
{[%clk 0:00:07.3]} 28. Qc5 {[%clk 0:00:41]} 28... Qf4 {[%clk 0:00:02.8]} 29. Re2
{[%clk 0:00:28.7]} 29... Bc3 {[%clk 0:00:01.1]} 30. Re3 {[%clk 0:00:27]} 1-0

[Event "Late-Titled-Tuesday-Blitz-May-14-2024"]
[Site "Chess.com"]
[Date "2024.05.14"]
[Round "2"]
[White "lukas_111111"]
[Black "ShahMatKanal"]
[Result "1-0"]
[WhiteElo "2675"]
[BlackElo "2396"]
[TimeControl "180+1"]
[EndTime "14:17:50 PDT"]
[Termination "lukas_111111 won by checkmate"]

1. c4 {[%clk 0:03:00.9]} 1... e6 {[%clk 0:02:56.4]} 2. Nc3 {[%clk 0:02:59.5]}
2... d5 {[%clk 0:02:56.4]} 3. d4 {[%clk 0:02:58.4]} 3... Nf6 {[%clk 0:02:55.6]}
4. Nf3 {[%clk 0:02:55.8]} 4... c6 {[%clk 0:02:54.5]} 5. e3 {[%clk 0:02:52.9]}
5... Nbd7 {[%clk 0:02:52.4]} 6. a4 {[%clk 0:02:47.3]} 6... b6 {[%clk 0:02:36.5]}
7. Bd3 {[%clk 0:02:37.6]} 7... dxc4 {[%clk 0:02:31.9]} 8. Bxc4 {[%clk
0:02:36.7]} 8... Bb4 {[%clk 0:02:27.4]} 9. O-O {[%clk 0:02:36]} 9... O-O {[%clk
0:02:26.5]} 10. Qc2 {[%clk 0:02:30]} 10... a5 {[%clk 0:02:16.4]} 11. e4 {[%clk
0:02:28.4]} 11... Ba6 {[%clk 0:02:11.5]} 12. Bxa6 {[%clk 0:02:27.4]} 12... Rxa6
{[%clk 0:02:12.4]} 13. e5 {[%clk 0:02:27.8]} 13... Nd5 {[%clk 0:02:10]} 14. Ng5
{[%clk 0:02:24.2]} 14... g6 {[%clk 0:02:00.4]} 15. Nce4 {[%clk 0:02:22.4]} 15...
c5 {[%clk 0:01:53.6]} 16. Qd3 {[%clk 0:02:16.9]} 16... Ra7 {[%clk 0:01:42.9]}
17. Nxh7 {[%clk 0:02:14]} 17... Kxh7 {[%clk 0:01:27.3]} 18. Qh3+ {[%clk
0:02:12.3]} 18... Kg8 {[%clk 0:01:23.9]} 19. Ng5 {[%clk 0:02:05.3]} 19... N7f6
{[%clk 0:01:11.2]} 20. dxc5 {[%clk 0:01:52.4]} 20... Bxc5 {[%clk 0:01:04.1]} 21.
exf6 {[%clk 0:01:50.3]} 21... Nxf6 {[%clk 0:01:03.1]} 22. Bf4 {[%clk 0:01:50.2]}
22... Nh5 {[%clk 0:00:49.2]} 23. Rad1 {[%clk 0:01:30]} 23... Qf6 {[%clk
0:00:43.2]} 24. Bc1 {[%clk 0:01:29.6]} 24... Qg7 {[%clk 0:00:40.1]} 25. Ne4
{[%clk 0:01:27.1]} 25... Be7 {[%clk 0:00:36.9]} 26. Be3 {[%clk 0:01:24.4]} 26...
Rb7 {[%clk 0:00:36.3]} 27. Qf3 {[%clk 0:01:18.6]} 27... Rfb8 {[%clk 0:00:32.7]}
28. g4 {[%clk 0:01:13.4]} 28... f5 {[%clk 0:00:23.8]} 29. gxh5 {[%clk
0:01:05.6]} 29... fxe4 {[%clk 0:00:24.1]} 30. Qxe4 {[%clk 0:01:05.7]} 30...
gxh5+ {[%clk 0:00:21.7]} 31. Kh1 {[%clk 0:01:05.8]} 31... Qf6 {[%clk 0:00:02.4]}
32. Rg1+ {[%clk 0:01:01.5]} 32... Kf8 {[%clk 0:00:02.6]} 33. Rg3 {[%clk
0:00:44]} 33... Ke8 {[%clk 0:00:02.3]} 34. Rf3 {[%clk 0:00:35.9]} 34... Qh4
{[%clk 0:00:01.4]} 35. Qg6# {[%clk 0:00:33.4]} 1-0